Cogmind - Beta 12 @@@ ROGUE MODE // 2023.07.04 @ 00:34:07 Player: ZOT Result: Destroyed by H-61 Shepherd with Heavy Assault Cannon Performance ------------- Evolutions (2) 1000 Regions Visited (6) 1200 Robots Destroyed (27) 135 Value Destroyed (482) 482 Prototype IDs (23) 460 Alien Tech Used (0) 0 Bonus (300) 300 TOTAL SCORE: 3577 Bonus ------- Aligned with FarCom 300 Cogmind --------- Core Integrity 0/550 Matter 238/300 Energy 100/100 System Corruption 0% Temperature Cool (0) Movement Core (100) Ox1 Location -8/Materials Parts ------- > --- POWER (1) -------- (None) > --- PROPULSION (4) --- (None) > --- UTILITY (4) ------ Targeting Computer > --- WEAPON (2) ------- Great Maul > --- INVENTORY (5) ---- Improved Sensor Array Signal Interpreter Hacking Suite Hacking Suite Guided Plasma Cannon Peak State ------------ > --- POWER ------------ Nuclear Core > --- PROPULSION ------- Wheel Wheel Flight Unit Flight Unit > --- UTILITY ---------- Salvage Targeting Computer Targeting Computer Reaction Control System Utility Shielding > --- WEAPON ----------- Guided Plasma Cannon Light Assault Rifle > --- INVENTORY -------- Light Ion Engine Signal Interpreter Light Assault Rifle [Rating: 23] Favorites ----------- Power Light Ion Engine Engine Light Ion Engine Power Core Nuclear Core Propulsion Flight Unit Wheel Compact Wheel Flight Unit Flight Unit Utility Utility Shielding Device Reaction Control System Processor Targeting Computer Protection Utility Shielding Weapon Light Assault Rifle Energy Gun Medium Laser Energy Cannon Guided Plasma Cannon Ballistic Gun Light Assault Rifle Special Weapon Mining Laser Impact Weapon Great Maul Special Melee Weapon Datajack Build | -11 -10 -9 -9 -9 -8 -8 ------- Run | Jun Mat Mat Min Exi Min Mat Slots Evolved 4 | . . 2 . . . 2 Power . | . . . . . . . Propulsion 2 | . . . . . . 2 Utility 2 | . . 2 . . . . Weapon . | . . . . . . . Parts Attached 37 | 7 . 6 10 . 8 6 Power 8 | 1 . 1 1 . 4 1 Engine 6 | 1 . 1 1 . 3 . Core 2 | . . . . . 1 1 Reactor . | . . . . . . . Propulsion 7 | 2 . . 2 . 1 2 Treads . | . . . . . . . Leg . | . . . . . . . Wheel 4 | 2 . . . . . 2 Hover . | . . . . . . . Flight 3 | . . . 2 . 1 . Utility 9 | 2 . 3 4 . . . Device 5 | 2 . 1 2 . . . Storage . | . . . . . . . Processor 2 | . . . 2 . . . Hackware . | . . . . . . . Protection 2 | . . 2 . . . . Artifact . | . . . . . . . Weapon 13 | 2 . 2 3 . 3 3 Energy Gun 2 | 1 . 1 . . . . Energy Cannon 2 | . . . . . 1 1 Ballistic Gun 6 | 1 . . 3 . 2 . Ballistic Cannon . | . . . . . . . Launcher . | . . . . . . . Special Weapon 1 | . . 1 . . . . Impact Weapon 1 | . . . . . . 1 Slashing Weapon . | . . . . . . . Piercing Weapon . | . . . . . . . Special Melee Weapon 1 | . . . . . . 1 Unidentified Prototypes . | . . . . . . . Parts Lost 19 | . . 7 2 . . 10 Power 2 | . . 1 . . . 1 Propulsion 6 | . . 2 . . . 4 Utility 7 | . . 2 2 . . 3 Weapon 4 | . . 2 . . . 2 Highest Loss Streak 9 | . . 7 2 . . 9 To Critical Strikes . | . . . . . . . Average Slot Usage (%) 88 | . 100 98 58 100 100 84 Engine 7 | . 14 10 2 11 10 . Core 1 | . . . . . . 7 Wheel 9 | . 28 21 . . . 15 Flight 10 | . . . 6 22 22 11 Device 15 | . 28 23 16 11 11 7 Processor 12 | . . . 8 22 22 18 Protection 11 | . . 20 11 11 11 7 Energy Gun 3 | . 14 9 . . . . Energy Cannon 1 | . . . . . . 6 Ballistic Gun 14 | . 14 9 13 22 21 7 Naked Turns . | . . . . . . . Heaviest Build 20 | 10 10 16 7 7 16 20 Greatest Support 32 | 32 32 32 8 8 8 20 Greatest Overweight (x) 1 | . . . 1 . 1 1 Average Overweight (x) . | . . . . . . . Largest Inventory Capacity 5 | 5 5 5 5 5 5 5 Average Capacity 5 | 5 5 5 5 5 5 5 Most Carried 5 | 5 5 5 5 5 5 5 Average Carried 4 | 1 4 4 4 4 4 4 Final Capacity 5 | 5 5 5 5 5 5 5 Final Carried 5 | 4 5 5 4 5 5 5 Class Distribution -------------------- 50% | Scavenger-Mutant 49% | Mutant Dominant Class ---------------- Mutant | -10/Materials Mutant | -9/Materials Mutant | -9/Mines Scavenger-Mutant | -9/Exiles Scavenger-Mutant | -8/Mines Scavenger-Mutant | -8/Materials Resources | -11 -10 -9 -9 -9 -8 -8 ----------- Run | Jun Mat Mat Min Exi Min Mat Matter Collected 642 | 284 . 75 83 . 131 69 Remotely . | . . . . . . . Salvage Created 728 | 142 . 173 76 . 94 243 Parts 58 | 8 . 22 9 . 6 13 Haulers Intercepted . | . . . . . . . Recyclers Shooed . | . . . . . . . Parts Field Recycled . | . . . . . . . Retrieved Matter . | . . . . . . . Parts Self-Destructed . | . . . . . . . Prevented . | . . . . . . . Kills | -11 -10 -9 -9 -9 -8 -8 ------- Run | Jun Mat Mat Min Exi Min Mat Combat Hostiles Destroyed 18 | . . 8 3 . 4 3 Guns 14 | . . 8 3 . 3 . Cannons 2 | . . . . . 1 1 Classes Destroyed 8 | 2 . 3 . . 1 2 Tunneler 4 | 3 . . 1 . . . Recycler 1 | 1 . . . . . . Operator 2 | . . . . . . 2 Watcher 2 | . . 1 . . . 1 Swarmer 13 | . . 7 3 . 3 . Grunt 2 | . . . . . . 2 Sentry 2 | . . 1 . . . 1 Hunter 1 | . . . . . 1 . Best Kill Streak 4 | 2 . 4 3 . 3 4 Combat Bots Only 4 | . . 4 3 . 3 2 Max Kills in Single Turn 1 | 1 . 1 1 . 1 1 Gunslinging . | . . . . . . . Exploded . | . . . . . . . Melee . | . . . . . . . Uniques/NPCs Destroyed . | . . . . . . . Combat | -11 -10 -9 -9 -9 -8 -8 -------- Run | Jun Mat Mat Min Exi Min Mat Damage Taken 1990 | . 68 629 251 . 74 968 Core 913 | . 10 164 173 . 7 559 Absorbed by Shields . | . . . . . . . Redirected to Shielding 39 | . . 13 10 . 2 14 Core Remaining (%) 70 | 100 96 . . . 14 . Volleys Fired 91 | 14 2 25 28 . 8 14 Largest 2 | 2 2 2 1 . 2 1 Hottest 150 | 70 70 150 20 . 120 120 Shots Fired 134 | 28 4 45 28 . 15 14 Gun 112 | 28 4 38 28 . 14 . Cannon 15 | . . . . . 1 14 Launcher . | . . . . . . . Special 7 | . . 7 . . . . Kinetic 76 | 14 2 18 28 . 14 . Thermal 58 | 14 2 27 . . 1 14 Explosive . | . . . . . . . Electromagnetic . | . . . . . . . Robot Hit Streak 15 | 5 . 4 5 . 3 15 Robot Miss Streak 6 | 2 4 5 2 . 6 . Penetration Max . | . . . . . . . Secondary Targets 3 | . . 2 . . 1 . Max Gunslinging Chain 1 | . . 1 . . 1 . Shots Hit Robots 80 | 18 . 21 21 . 5 15 Core Hits 35 | 6 . 12 9 . 4 4 Critical Kills . | . . . . . . . Critical Parts Destroyed 1 | . . . . . . 1 Critical Strikes 2 | . . 1 . . . 1 Burn 1 | . . 1 . . . . Smash 1 | . . . . . . 1 Melee Attacks 1 | . . . . . . 1 Impact 1 | . . . . . . 1 Slashing . | . . . . . . . Piercing . | . . . . . . . Sneak Attacks . | . . . . . . . Combat Hostiles . | . . . . . . . Follow-up Attacks . | . . . . . . . Damage Inflicted 1211 | 189 8 243 161 . 80 530 Guns 627 | 189 8 228 161 . 41 . Cannons 520 | . . . . . 39 481 Explosions . | . . . . . . . Melee 49 | . . . . . . 49 Ramming 15 | . . 15 . . . . Kinetic 361 | 74 8 77 161 . 41 . Thermal 786 | 115 . 151 . . 39 481 Explosive . | . . . . . . . Electromagnetic . | . . . . . . . Impact 49 | . . . . . . 49 Slashing . | . . . . . . . Piercing . | . . . . . . . Highest Corruption . | . . . . . . . Average Corruption . | . . . . . . . Corruption Purged . | . . . . . . . Corruption Blocked . | . . . . . . . Overload Shots . | . . . . . . . Overflow Damage 52 | . . . . . . 52 Projectiles 3 | . . . . . . 3 Explosions . | . . . . . . . Melee 49 | . . . . . . 49 Knockbacks 1 | . . 1 . . . . Impact 1 | . . 1 . . . . Kinetic . | . . . . . . . Secondary . | . . . . . . . Self-Inflicted Damage 7 | . . 7 . . . . Shots . | . . . . . . . Rammed 1 | . . 1 . . . . Targets Rammed 1 | . . 1 . . . . Kicked . | . . . . . . . Crushed . | . . . . . . . Highest Temperature 643 | 130 30 186 . . 78 643 Average Temperature 117 | 49 18 80 . . 32 249 Received Heat Transfer 423 | . 36 99 . . . 288 Effects 8 | . . . . . . 8 Shutdowns 2 | . . . . . . 2 Energy Bleed 1 | . . . . . . 1 Matter Decay 2 | . . . . . . 2 Short Circuit 1 | . . . . . . 1 Damage (minor) 1 | . . . . . . 1 Damage (core) 1 | . . . . . . 1 Siege Activations . | . . . . . . . Robots Corrupted . | . . . . . . . Combat Hostiles . | . . . . . . . Parts Fried 1 | . . . . . . 1 Impact Corruptions 1 | . . . . . . 1 Robots Melted 1 | . . . . . . 1 Combat Hostiles 1 | . . . . . . 1 Parts Melted 4 | . . 1 . . . 3 Heat Transferred 2051 | 333 . 518 . . 80 1120 Parts Sabotaged . | . . . . . . . Parts Stolen . | . . . . . . . Parts Stripped . | . . . . . . . Power Chain Reactions . | . . . . . . . Missiles Intercepted . | . . . . . . . Alert | -11 -10 -9 -9 -9 -8 -8 ------- Run | Jun Mat Mat Min Exi Min Mat Peak Influence 375 | 20 28 375 179 . 265 236 Initial 124 | . 13 11 124 . . 103 Average 138 | 9 19 200 142 . 130 170 Maximum Alert Level 1 | . . 1 . . 1 1 Low Security (%) 71 | 100 100 36 100 . 67 64 Level 1 28 | . . 63 . . 32 35 Level 2 . | . . . . . . . Level 3 . | . . . . . . . Level 4 . | . . . . . . . Level 5 . | . . . . . . . High Security . | . . . . . . . Max Security . | . . . . . . . Squads Dispatched 3 | . 1 2 . . . . Investigation 1 | . . 1 . . . . Extermination . | . . . . . . . Reinforcement 2 | . 1 1 . . . . Assault . | . . . . . . . Garrison . | . . . . . . . Intercept . | . . . . . . . Searches Triggered . | . . . . . . . Construction Impeded . | . . . . . . . Haulers Reinforced . | . . . . . . . Active Scanning Responses . | . . . . . . . Cargo Convoy Interrupts . | . . . . . . . Stealth | -11 -10 -9 -9 -9 -8 -8 --------- Run | Jun Mat Mat Min Exi Min Mat Distress Signals 3 | . . 2 . . . 1 Communications Jammed . | . . . . . . . Distress Signals . | . . . . . . . Times Spotted 61 | . 4 26 3 . 15 13 Peak Tracking Total 15 | . 2 15 3 . 4 6 Tactical Retreats 10 | . . 4 . . 4 2 Traps | -11 -10 -9 -9 -9 -8 -8 ------- Run | Jun Mat Mat Min Exi Min Mat Traps Triggered . | . . . . . . . Indirectly . | . . . . . . . Trap Hack Attempts . | . . . . . . . Triggered . | . . . . . . . Disarmed . | . . . . . . . Reprogrammed . | . . . . . . . Reused . | . . . . . . . Traps Extracted . | . . . . . . . Installed . | . . . . . . . Triggered . | . . . . . . . Machines | -11 -10 -9 -9 -9 -8 -8 ---------- Run | Jun Mat Mat Min Exi Min Mat Machines Disabled . | . . . . . . . Max in Single Turn . | . . . . . . . Machines Repaired . | . . . . . . . Machines Sabotaged . | . . . . . . . Overloaded Fab Kills . | . . . . . . . Hacking | -11 -10 -9 -9 -9 -8 -8 --------- Run | Jun Mat Mat Min Exi Min Mat Machines Accessed 10 | . . 2 . 5 . 3 Terminals 4 | . . 1 . . . 3 Fabricators . | . . . . . . . Repair Stations 1 | . . 1 . . . . Recycling Units . | . . . . . . . Scanalyzers . | . . . . . . . Garrison Access . | . . . . . . . Total Hacks 63 | . . 4 . 50 . 9 Successful 55 | . . 1 . 50 . 4 Failed 8 | . . 3 . . . 5 Catastrophic 4 | . . 1 . . . 3 Database Lockouts . | . . . . . . . Manual 4 | . . . . 4 . . Terminals 11 | . . 2 . . . 9 Fabricators . | . . . . . . . Repair Stations 2 | . . 2 . . . . Recycling Units . | . . . . . . . Scanalyzers . | . . . . . . . Garrison Access . | . . . . . . . Terminal Hacks 54 | . . . . 50 . 4 Record 52 | . . . . 49 . 3 Zone Layout 1 | . . . . . . 1 EX-Prototype ID Bank 1 | . . . . 1 . . Fabricator Hacks . | . . . . . . . Repair Station Hacks 1 | . . 1 . . . . Scan Component 1 | . . 1 . . . . Recycling Unit Hacks . | . . . . . . . Scanalyzer . | . . . . . . . Garrison Access Hacks . | . . . . . . . Unauthorized Hacks . | . . . . . . . Terminals . | . . . . . . . Fabricators . | . . . . . . . Repair Stations . | . . . . . . . Recycling Units . | . . . . . . . Scanalyzers . | . . . . . . . Garrison Access . | . . . . . . . Data Cores Recovered 2 | . . . . . . 2 Used 1 | . . . . . . 1 Hacking Detections 5 | . . 2 . . . 3 Full Trace Events 1 | . . 1 . . . . Feedback Events . | . . . . . . . Feedback Blocked . | . . . . . . . Robot Schematics Acquired . | . . . . . . . Robots Built . | . . . . . . . Authchips . | . . . . . . . Time . | . . . . . . . Total Robot Build Rating . | . . . . . . . Part Schematics Acquired . | . . . . . . . Parts Built . | . . . . . . . Authchips . | . . . . . . . Time . | . . . . . . . Total Part Build Rating . | . . . . . . . Parts Repaired . | . . . . . . . Time . | . . . . . . . Parts Recycled . | . . . . . . . Recycled Matter . | . . . . . . . Retrieved Matter . | . . . . . . . Retrieved Components . | . . . . . . . Parts Scanalyzed . | . . . . . . . Part Schematics Acquired . | . . . . . . . Parts Damaged . | . . . . . . . Bothacking | -11 -10 -9 -9 -9 -8 -8 ------------ Run | Jun Mat Mat Min Exi Min Mat Used RIF Installer . | . . . . . . . Robots Hacked . | . . . . . . . Non-combat . | . . . . . . . Combat . | . . . . . . . Robot Hacks Applied . | . . . . . . . Relay Couplers Released . | . . . . . . . Fabnet Peak Effective % . | . . . . . . . Robots Rewired . | . . . . . . . Allies Hacked . | . . . . . . . Hacks Repelled . | . . . . . . . Allies | -11 -10 -9 -9 -9 -8 -8 -------- Run | Jun Mat Mat Min Exi Min Mat Total Allies . | . . . . . . . Largest Group . | . . . . . . . Highest-Rated Group . | . . . . . . . Highest-Rated Ally . | . . . . . . . Total Orders . | . . . . . . . Ally Attacks . | . . . . . . . Total Damage . | . . . . . . . Kills . | . . . . . . . Allies Corrupted . | . . . . . . . Allies Melted . | . . . . . . . Intel | -11 -10 -9 -9 -9 -8 -8 ------- Run | Jun Mat Mat Min Exi Min Mat Robot Analysis Total . | . . . . . . . Derelict Logs Recovered 2 | . . . 2 . . . Drone Launches . | . . . . . . . Drone Recoveries . | . . . . . . . Exploration | -11 -10 -9 -9 -9 -8 -8 ------------- Run | Jun Mat Mat Min Exi Min Mat Turns Passed 1981 | 118 151 396 380 242 397 297 Spaces Moved 2396 | 68 113 274 456 651 559 275 Core 307 | 13 . 1 249 . . 44 Treads . | . . . . . . . Legs . | . . . . . . . Wheels 672 | 55 113 273 . . . 231 Hover . | . . . . . . . Flight 1417 | . . . 207 651 559 . Fastest Speed 37 | 50 100 50 37 37 37 50 Average Speed 58 | 90 100 99 62 37 37 77 Slowest Speed 117 | 100 100 100 100 37 117 100 Overloaded Moves . | . . . . . . . Propulsion Burnouts . | . . . . . . . Robots Hopped 5 | . . . 2 . 3 . Cave-ins Triggered . | . . . . . . . Exploration Rate (%) 49 | 3 28 33 71 94 89 25 Regions Visited 6 Branch Regions 3 Pre-discovered Areas 2 | . . . 1 1 . . Known Exits Taken . | . . . . . . . Unknown Exits Taken 6 | 1 1 1 1 1 1 . Scrap Searched 2 | . . . 1 . 1 . Spaces Dug 5 | . . 5 . . . . Terrain Destroyed 5 | . . 5 . . . . Melee . | . . . . . . . Projectile 5 | . . 5 . . . . AOE . | . . . . . . . Terrain Rammed . | . . . . . . . Walls Destroyed . | . . . . . . . Machines Disabled . | . . . . . . . Actions | -11 -10 -9 -9 -9 -8 -8 --------- Run | Jun Mat Mat Min Exi Min Mat Total 2837 | 99 147 341 522 651 735 342 Wait 279 | . 32 29 27 . 153 38 Move 2381 | 67 112 274 451 650 552 275 Hop 5 | . . . 2 . 3 . Pick Up 27 | 11 1 3 3 1 3 5 Fast Attach 8 | . . 1 5 . 1 1 Attach 17 | 7 . 2 4 . 1 3 Detach 1 | . . 1 . . . . Swap 12 | . . 3 1 . 6 2 Drop 15 | . . 3 1 . 8 3 Fire 91 | 14 2 25 28 . 8 14 Melee 1 | . . . . . . 1 Ram . | . . . . . . . Kick . | . . . . . . . Crush . | . . . . . . . Escape Stasis . | . . . . . . . Rewire . | . . . . . . . Trap . | . . . . . . . Miscellaneous . | . . . . . . . Route ------- -11/Junkyard -10/Materials -9/Materials -9/Mines (discovered 2 exits: *Mat / *Exi) -9/Exiles (discovered 2 exits: [*Min x2]) -8/Mines -8/Materials History --------- Turn | Location | Event 5 | -11/Junkyard | Discovered new exit (range 16) 119 | -11/Junkyard | Entered Materials 261 | -10/Materials | Discovered new exit (range 9) 270 | -10/Materials | Entered another Materials area 270 | -9/Materials | Evolved 2 slots: Utility x2 308 | -9/Materials | Build established: Mutant 655 | -9/Materials | Discovered new exit (range 11) 666 | -9/Materials | Entered Mines 669 | -9/Mines | Met a Derelict bent on vengeance 696 | -9/Mines | Lost 7 parts (1p2n2u2w) 835 | -9/Mines | Discovered new exit (range 6) 905 | -9/Mines | Core integrity fell below 50% 925 | -9/Mines | Core integrity fell below 20% 982 | -9/Mines | Learned Materials garrison access intel 1044 | -9/Mines | Deemed a non-threat by the Exiles lab entrance 1044 | -9/Mines | Discovered new exit (range 5) 1046 | -9/Mines | Entered Exiles 1052 | -9/Exiles | Discovered new exit (range 15) 1065 | -9/Exiles | Met 8R-AWN 1072 | -9/Exiles | Met EX-HEX 1099 | -9/Exiles | Met EX-DEC 1115 | -9/Exiles | Visited The Gauntlet 1183 | -9/Exiles | Discovered new exit (range 12) 1202 | -9/Exiles | Learned location of Zion (-6) 1217 | -9/Exiles | Met EX-BIN 1225 | -9/Exiles | Aligned with FarCom system 1226 | -9/Exiles | Given EX-Vault access code 1230 | -9/Exiles | Build established: Scavenger-Mutant 1244 | -9/Exiles | Opened EX-Vault 1249 | -9/Exiles | Found Gui. Plasma Cannon 1260 | -9/Exiles | Warned to stay clear of 0b10 Research branches 1261 | -9/Exiles | Exiles lab attacked by MAIN.C 1288 | -9/Exiles | Left Exiles lab with Gui. Plasma Cannon 1288 | -9/Exiles | Entered Mines 1682 | -8/Mines | Discovered new exit (range 8) 1685 | -8/Mines | Entered Materials 1685 | -8/Materials | Evolved 2 slots: Propulsion x2 1686 | -8/Materials | Loaded intel: 1 garrison access location 1976 | -8/Materials | Core integrity fell below 50% 1980 | -8/Materials | Core integrity fell below 20% 1982 | -8/Materials | Destroyed by H-61 Shepherd with Heavy Assault Cannon Last Messages --------------- 01955_ U-05 Engineer suffers critical hit (Burn). 01955_ U-05 Engineer destroyed. 01956_ R-06 Scavenger collects Sml. Storage Unit. 01957_ K-01 Serf collects debris. 01964_ Datajack destroyed. 01964_ Acquired Great Maul. 01972_ G-50 Soldier suffers critical hit (Smash). 01972_ Destroyed Adv. Heat Sink. 01972_ G-50 Soldier system corrupted by crushing effect. 01973_ G-50 Soldier system terminally corrupted. 01973_ Lgt. Angular Momentum Engine fried. 01975_ Slug penetrates Wall. 01975_ Knocked back. 01976_ Critical hit (Burn: +37). 01977_ Penetrated by Slug. 01977_ Electrolysis Chamber disabled. 01979_ Knocked back. 01980_ Acquired 6 matter. 01982_ Salvage Targeting Computer destroyed. 01982_ Critical hit (Blast). Map ----- +----------------------------------------------------+ | ??# """???# #?????????????????????? | | ??# !! """???# #?????????????????????? | | ??# !! ""????# #?????????????????????? | | ??# ????# #?????????????????????? | | #######+###### #?????????????????????? | | #?????????????????????? | | ! #######?????????????????????? | | #???????????????????????????? | | ########???????????????????????????? | | "#?????????????????????????????????? | | T#?????????????????????????????????? | | "#?????????????????????????????????? | | ###########????????????????????????? | | #????????????????????????? | | ! +????????????????????????? | | #????????######???????#??? | | #???????##!!!!##????? #??? | | ######### #???????#! !#???? #??? | | ????????# #???????# ##?? ##?? | | ????????# ######### % ### #?? | | ????????# #?? | | ????????# !! #?? | | ????????# =%% k % #?? | | ????????############### % ####g #?? | | ????????????########??# #???# ##?? | | ????????????# [ # @#???? #??? | | ????????????# ==! + #????? #??? | | ????????????#] =!! # #?????? #??? | | ????????????# =! ??# #???????#??? | | ???????????############g ##?????????? | | ???????????# !%# H #?????????? | | ???????????# [;g! #?????????? | | ???????????# Y/% #?????????? | | ???????????# # #?????????? | | ???????????# "" """ # #?????????? | | ???????????# """ """ #######?????????? | | ???????????# """ """ #???????????????? | | ???????????# #???????????????? | | ???????????###########???????????????? | | ?????????????????????????????????????? | | ?????????????????????????????????????? | | ?????????????????????????????????????? | | ?????????????????????????????????????? | | ?????????????????????????????????????? | | ?????????????????????????????????????? | | ?????????????????????????????????????? | | ?????????????????????????????????????? | | ?????????????????????????????????????? | | ?????????????????????????????????????? | | ?????????????????????????????????????? | +----------------------------------------------------+ Best States ------------- Heat Dissipation 31 Energy Generation 14 Energy Capacity 250 Matter Stores 300 Matter Capacity 300 Sight Range 16 Terrain Scan Range 16 Terrain Scan Density 10 Armor Coverage 150 Utility Shielding 33 Evasion (%) 70 Targeting Accuracy 5 Salvage Targeting 1 Item Schematics ----------------- None Robot Schematics ------------------ None Fabricated ------------ Nothing Alien Tech Used ----------------- None Achievements -------------- None Challenges ------------ None Game ------ Seed GatlingAccelerationCharge Manual? 0 Play Time 00:45:02 Cumulative 37.7 hours Start 2023.07.03 @ 09:28:20 End 2023.07.04 @ 00:34:07 Sessions 3 Manual Loads 0 Difficulty Rogue Special Mode None Game No. 46 Rogue 46 Adventurer 0 Explorer 0 Win Type - Total 0 Types 0/0/0/0/0/0/0/0/0 Lore% 16 Gallery% 29 Achievement% 21 Wizard Run 0 Options --------- ASCII 0 Keyboard 0 Movement Mouse Keybinds 0 Fullscreen 1 Font 24/Smallcaps Map View 76x50 Tactical HUD 1 Map Filters NONE Filters NONE Steam 1 RUN: 6ee9493a-65db-448f-847c-f9bd51151973